bitfinex/quotes_SOLUSD_20251013
["timestamp","ask_amount","ask_price","bid_price","bid_amount"]
[1760352341221,20.8,195.82,195.81,16.59999999]
[1760352341426,0.10347667,195.83,195.82,16.59999999]
[1760352341925,0.10347667,195.83,195.82,17.28999999]
[1760352342312,0.10347667,195.83,195.82,22.39673066]
[1760352342620,0.10347667,195.83,195.82,21.70673066]
[1760352342926,0.10347667,195.83,195.82,22.39673066]
[1760352343608,0.10347667,195.83,195.82,16.59999999]
[1760352343927,7.12899502,195.83,195.8,16.59999999]
[1760352344140,6.51551835,195.82,195.8,16.59999999]
[1760352344427,27.31551835,195.81,195.8,16.59999999]
[1760352344933,27.82551835,195.81,195.77,21.70785672]
[1760352345136,27.31551835,195.8,195.79,16.59999999]
[1760352345732,27.31551835,195.8,195.77,21.70785672]
[1760352345924,27.31551835,195.8,195.79,16.59999999]
[1760352346116,27.31551835,195.8,195.77,21.70785672]
[1760352346307,27.31551835,195.8,195.79,16.59999999]
[1760352347212,20.8,195.8,195.79,22.36751314]
[1760352347540,20.8,195.82,195.81,16.59999999]
[1760352351129,27.31551835,195.82,195.8,16.59999999]
[1760352351313,20.8,195.82,195.81,16.59999999]
[1760352352636,27.31551835,195.82,195.81,16.59999999]
[1760352353014,27.31551835,195.82,195.8,16.59999999]
[1760352353213,20.8,195.82,195.81,16.59999999]
[1760352354238,0.10347667,195.83,195.82,16.59999999]
[1760352354437,0.10347667,195.83,195.82,17.25999999]
[1760352354643,0.10347667,195.83,195.82,0.66]
[1760352354833,0.10347667,195.83,195.82,17.25999999]
[1760352355241,0.10347667,195.83,195.82,16.59999999]
[1760352355536,0.10347667,195.83,195.82,17.25999999]
[1760352355920,0.21489682,195.83,195.82,17.25999999]
[1760352356325,0.21489682,195.83,195.82,16.59999999]
[1760352356739,7.24041517,195.83,195.8,16.59999999]
[1760352356941,6.51551835,195.81,195.8,16.59999999]
[1760352357333,4.07440052,195.81,195.8,16.59999999]
[1760352358739,4.07440052,195.81,195.8,21.70725228]
[1760352359044,0.11142015,195.83,195.82,16.59999999]
[1760352359643,20.8,195.82,195.81,17.25999999]
[1760352360050,0.11142015,195.83,195.82,16.59999999]
[1760352360232,0.11142015,195.83,195.82,17.25999999]
[1760352360642,0.11142015,195.83,195.82,26.44113118]
[1760352360855,0.11142015,195.83,195.82,106.84113118]
[1760352361153,0.11142015,195.83,195.82,117.71760639]
[1760352361855,0.11142015,195.83,195.79,16.59999999]
[1760352361856,4.18582067,195.83,195.79,16.59999999]
[1760352362031,0.11142015,195.83,195.82,16.59999999]
[1760352362237,4.18582067,195.83,195.82,16.59999999]
[1760352362533,0.11142015,195.83,195.82,16.59999999]
[1760352363065,4.18582067,195.83,195.82,16.59999999]
[1760352363436,0.11142015,195.83,195.81,21.70698716]
[1760352363641,4.18582067,195.83,195.82,16.59999999]
[1760352363842,0.11142015,195.83,195.82,16.59999999]
[1760352364454,4.18582067,195.83,195.82,16.59999999]
[1760352364748,4.18582067,195.83,195.8,16.59999999]
[1760352364948,4.07440052,195.82,195.81,17.25999999]
[1760352365549,9.70889349,195.82,195.81,16.59999999]
[1760352367150,9.70889349,195.82,195.79,5.76746262]
[1760352367151,9.70889349,195.82,195.79,16.59999999]
[1760352367339,9.70889349,195.8,195.78,16.59999999]
[1760352367542,20.91142015,195.83,195.79,80.4]
[1760352368161,0.51,195.82,195.79,80.4]
[1760352368327,0.51,195.82,195.78,16.59999999]
[1760352368531,20.8,195.76,195.73,16.59999999]
[1760352368728,9.70889349,195.74,195.72,16.59999999]
[1760352368949,20.8,195.76,195.75,16.59999999]
[1760352369259,21.31,195.79,195.73,16.59999999]
[1760352369554,21.31,195.79,195.75,16.59999999]
[1760352369857,20.8,195.8,195.77,16.59999999]
[1760352370165,9.70889349,195.78,195.77,16.59999999]
[1760352370330,0.11142015,195.83,195.77,17.25999999]
[1760352370536,20.8,195.81,195.8,16.59999999]
[1760352370746,9.70889349,195.82,195.81,16.59999999]
[1760352371342,20.8,195.82,195.81,17.25999999]
[1760352372437,0.11142015,195.83,195.82,5.10673067]
[1760352372637,0.11142015,195.83,195.82,22.36673066]
[1760352372856,20.91142015,195.83,195.82,22.36673066]
[1760352373246,0.11142015,195.83,195.82,22.36673066]
[1760352373562,20.91142015,195.83,195.82,22.36673066]
[1760352373743,0.11142015,195.83,195.82,32.07562415]
[1760352373959,0.11024899,195.84,195.83,16.59999999]
[1760352374169,0.09197444,195.85,195.84,16.59999999]
[1760352374493,0.09197444,195.85,195.84,21.70620914]
[1760352374867,0.09197444,195.85,195.84,22.36620914]
[1760352375102,0.09197444,195.85,195.84,17.25999999]
[1760352375259,9.80086793,195.85,195.84,16.59999999]
[1760352375453,0.09197444,195.85,195.84,16.59999999]
[1760352375955,0.1849975,195.85,195.84,16.59999999]
[1760352376406,0.1849975,195.85,195.84,22.36620914]
[1760352376558,0.1849975,195.85,195.84,32.07510263]
[1760352377058,0.1849975,195.85,195.84,22.36620914]
[1760352377375,0.09302306,195.85,195.84,22.36620914]
[1760352378166,0.09302306,195.85,195.84,32.07510263]
[1760352383092,0.10597475,195.87,195.86,27.4764752]
[1760352383264,0.10597475,195.87,195.86,37.18536869]
[1760352383463,0.10597475,195.87,195.86,37.85536869]
[1760352383663,1e-08,195.87,195.86,37.85536869]
[1760352384168,1e-08,195.87,195.86,37.71538269]
[1760352385278,1e-08,195.87,195.86,22.23570172]
[1760352385480,1e-08,195.87,195.86,31.94459521]
[1760352386774,1e-08,195.87,195.86,21.56570172]
[1760352387078,1e-08,195.87,195.86,22.23570172]
[1760352387261,1e-08,195.87,195.86,31.94459521]
[1760352388982,1e-08,195.87,195.86,21.56570172]
[1760352389278,1e-08,195.87,195.86,22.23570172]
[1760352389493,1e-08,195.87,195.86,31.94459521]
[1760352390381,1e-08,195.87,195.86,22.23570172]
[1760352390594,1e-08,195.87,195.86,21.56570172]
[1760352390972,1e-08,195.87,195.86,22.23570172]
[1760352392383,1e-08,195.87,195.86,31.94459521]
[1760352394495,1e-08,195.87,195.86,42.82107042]
[1760352396100,0.09508785,195.87,195.86,42.82107042]
[1760352397397,1e-08,195.87,195.86,42.82107042]
[1760352397598,1e-08,195.87,195.86,33.11217693]
[1760352397803,1e-08,195.87,195.86,42.82107042]
[1760352399102,1e-08,195.88,195.87,32.44191626]
[1760352399306,1e-08,195.88,195.87,42.82080975]
[1760352399698,1e-08,195.88,195.87,33.11191626]
[1760352399887,1e-08,195.88,195.87,21.56544105]
[1760352402283,1e-08,195.88,195.87,31.94433454]
[1760352404010,1e-08,195.88,195.87,21.56544105]
[1760352408316,25.49036801,195.88,195.87,16.46001399]
[1760352409709,21.42000001,195.88,195.87,16.46001399]
[1760352409912,20.80000001,195.88,195.87,21.56544105]
[1760352410521,25.49036801,195.88,195.87,16.46001399]
[1760352412723,24.87036801,195.88,195.87,16.46001399]
[1760352414017,25.49036801,195.88,195.87,16.46001399]
[1760352414413,24.87036801,195.88,195.87,16.46001399]
[1760352414723,20.80000001,195.88,195.87,16.46001399]
[1760352415110,24.87036801,195.88,195.87,16.46001399]
[1760352415910,25.59095272,195.88,195.87,16.46001399]
[1760352416823,4.79095272,195.88,195.87,16.46001399]
[1760352417125,4.79095272,195.88,195.85,16.46001399]
[1760352417332,4.070368,195.86,195.85,16.46001399]
[1760352418417,4.070368,195.86,195.84,21.56597553]
[1760352418728,24.870368,195.86,195.85,16.46001399]
[1760352419435,23.40655304,195.86,195.85,16.46001399]
[1760352419928,29.13224077,195.86,195.8,16.46001399]
[1760352420125,2.60655304,195.81,195.8,16.46001399]
[1760352420316,3.22655304,195.81,195.79,16.46001399]
[1760352420513,3.22655304,195.81,195.77,5.10800631]
[1760352420514,3.22655304,195.8,195.77,16.46001399]
[1760352420832,2.60655304,195.78,195.77,16.46001399]
[1760352421327,2.60655304,195.79,195.78,16.46001399]
[1760352421627,2.60655304,195.79,195.75,0.67]
[1760352421628,2.60655304,195.79,195.77,16.46001399]
[1760352421831,2.60655304,195.78,195.77,16.46001399]
[1760352422512,23.40655304,195.79,195.77,21.56804892]
[1760352422712,23.40655304,195.79,195.78,16.46001399]
[1760352423507,20.8,195.79,195.78,16.46001399]
[1760352423706,0.10058471,195.88,195.85,16.46001399]
[1760352423920,2.70713775,195.88,195.87,16.46001399]
[1760352424130,2.70713775,195.88,195.86,16.46001399]
[1760352424431,2.70713775,195.88,195.87,16.46001399]
[1760352425014,2.70713775,195.88,195.79,17.87629602]
[1760352425015,24.12713775,195.88,195.86,16.46001399]
[1760352425317,21.52058471,195.88,195.86,16.46001399]
[1760352425511,0.72058471,195.88,195.87,16.46001399]
[1760352425709,20.8,195.86,195.85,16.46001399]
[1760352426311,20.90058471,195.88,195.85,22.23596241]
[1760352426512,20.90058471,195.88,195.87,16.46001399]
[1760352426833,23.50713775,195.88,195.87,16.46001399]
[1760352427419,2.70713775,195.88,195.85,22.23590471]
[1760352427618,2.70713775,195.88,195.87,16.46001399]
[1760352427829,0.10058471,195.88,195.87,21.56544105]
[1760352428026,2.70713775,195.88,195.87,21.56544105]
[1760352428828,23.50713775,195.88,195.86,22.23564194]
[1760352429041,20.90058471,195.88,195.87,16.46001399]
[1760352429242,20.90058471,195.88,195.87,17.13001399]
[1760352429424,0.10058471,195.88,195.87,17.13001399]
[1760352430327,0.10058471,195.88,195.87,22.23544105]
[1760352431529,0.10058471,195.88,195.87,24.84199409]
[1760352434350,0.10058471,195.88,195.87,105.24199409]
[1760352435954,0.20279398,195.88,195.87,105.24199409]
[1760352437340,0.10220927,195.88,195.87,105.24199409]
[1760352440249,0.10220927,195.88,195.87,102.63544105]
[1760352440568,0.10220927,195.88,195.87,105.24199409]
[1760352440944,0.10220927,195.88,195.87,96.86001399]
[1760352441267,0.10220927,195.88,195.87,21.56544105]
[1760352441633,3.32876231,195.88,195.87,16.46001399]
[1760352442031,20.8,195.87,195.85,16.46001399]
[1760352442243,2.60655304,195.86,195.85,16.46001399]
[1760352442542,2.60655304,195.86,195.85,21.56596241]
[1760352442751,23.40655304,195.87,195.85,21.56596241]
[1760352442928,23.40655304,195.87,195.86,16.46001399]
[1760352444749,23.40655304,195.87,195.85,16.46001399]
[1760352444750,29.1319801,195.87,195.85,16.46001399]
[1760352445049,20.8,195.84,195.82,16.46001399]
[1760352445225,3.22655304,195.83,195.82,16.46001399]
[1760352445427,3.22655304,195.83,195.79,16.46001399]
[1760352445652,2.60655304,195.8,195.76,16.46001399]
[1760352445834,2.60655304,195.77,195.76,16.46001399]
[1760352446425,20.8,195.82,195.77,16.46001399]
[1760352446648,2.60655304,195.79,195.78,16.46001399]
[1760352447553,0.62,195.84,195.8,16.46001399]
[1760352447744,20.8,195.84,195.82,16.46001399]
[1760352447945,3.22655304,195.83,195.82,16.46001399]
[1760352448250,2.60655304,195.83,195.82,16.46001399]
[1760352448559,3.22655304,195.83,195.82,16.46001399]
[1760352449929,3.22655304,195.83,195.81,16.46001399]
[1760352450126,2.60655304,195.82,195.81,16.46001399]
[1760352450552,0.62,195.83,195.81,16.46001399]
[1760352450751,2.60655304,195.82,195.81,16.46001399]
[1760352451759,29.13328371,195.82,195.81,16.46001399]
[1760352451952,20.8,195.8,195.79,16.46001399]
[1760352452155,26.63310608,195.8,195.77,16.46001399]
[1760352452352,26.63310608,195.8,195.76,16.46001399]
[1760352452353,0.62,195.79,195.76,16.46001399]
[1760352452535,26.01310608,195.8,195.75,16.46001399]
[1760352452536,2.60655304,195.77,195.75,16.46001399]
[1760352452854,2.60655304,195.76,195.75,16.46001399]
[1760352453455,23.40655304,195.76,195.75,16.46001399]
[1760352454261,20.8,195.74,195.73,16.46001399]
[1760352454453,23.40655304,195.74,195.71,21.56951078]
[1760352454652,2.60655304,195.72,195.7,16.46001399]
[1760352454846,2.60655304,195.71,195.7,16.46001399]
[1760352455654,2.60655304,195.71,195.68,16.46001399]
[1760352455846,23.40655304,195.69,195.68,16.46001399]
[1760352456639,2.60655304,195.69,195.68,16.46001399]
[1760352457457,2.60655304,195.7,195.68,16.46001399]
[1760352458038,23.40655304,195.7,195.69,16.46001399]
[1760352458468,20.8,195.69,195.68,16.46001399]
[1760352458768,20.8,195.69,195.67,0.2]
[1760352458769,24.02655304,195.69,195.67,0.2]
[1760352459055,24.02655304,195.68,195.67,16.66001399]
[1760352459248,23.40655304,195.68,195.67,16.66001399]
[1760352459760,29.13693734,195.68,195.67,0.2]
[1760352459951,40.01341255,195.68,195.67,0.2]
[1760352461160,25.9103843,195.68,195.67,0.2]
[1760352461346,23.40655304,195.68,195.67,0.2]
[1760352461538,29.13693734,195.68,195.67,0.2]
[1760352461940,40.01341255,195.68,195.67,0.2]
[1760352463462,36.78685951,195.68,195.67,0.2]
[1760352463643,39.39341255,195.68,195.67,0.2]
[1760352463845,40.01341255,195.68,195.67,0.2]
[1760352464966,10.87647521,195.64,195.62,0.2]
[1760352465153,2.60655304,195.63,195.62,0.2]
[1760352465350,7.71824347,195.63,195.62,0.2]
[1760352466368,2.60655304,195.63,195.62,0.2]
[1760352466767,26.53064547,195.67,195.64,16.46001399]
[1760352466768,20.8,195.67,195.64,16.46001399]
[1760352466968,2.60655304,195.65,195.64,16.46001399]
[1760352467959,20.8,195.65,195.64,17.15001399]
[1760352468537,2.60655304,195.66,195.64,17.15001399]
[1760352468538,23.40655304,195.66,195.64,17.15001399]
[1760352468973,23.40655304,195.66,195.65,0.69]
[1760352469464,5.52,195.7,195.66,16.46001399]
[1760352469666,2.60655304,195.68,195.67,0.69]
[1760352469861,20.8,195.67,195.66,16.46001399]
[1760352470061,20.8,195.67,195.66,17.15001399]
[1760352471071,5.52,195.7,195.68,16.46001399]
[1760352471263,5.52,195.7,195.69,17.15001399]
[1760352471462,26.32,195.7,195.69,17.15001399]
[1760352472162,28.92655304,195.7,195.68,16.46001399]
[1760352472370,20.8,195.68,195.67,16.46001399]
[1760352472551,23.40655304,195.68,195.67,16.46001399]
[1760352474076,2.60655304,195.68,195.67,17.15001399]
[1760352474373,23.40655304,195.69,195.67,17.15001399]
[1760352474548,26.32,195.7,195.69,16.46001399]
[1760352474872,28.92655304,195.7,195.69,17.15001399]
[1760352475050,20.8,195.68,195.67,16.46001399]
[1760352475241,20.8,195.68,195.67,17.15001399]
[1760352475871,20.90883265,195.68,195.67,17.15001399]
[1760352476054,20.90883265,195.68,195.67,22.26065946]
[1760352476259,20.90883265,195.68,195.67,17.15001399]
[1760352476657,20.90883265,195.68,195.67,22.26065946]
[1760352479954,0.10883265,195.68,195.67,22.26065946]
[1760352481556,0.10883265,195.68,195.67,26.33857208]
[1760352482452,0.10883265,195.68,195.67,22.26065946]
[1760352482774,0.10883265,195.68,195.67,26.33857208]
[1760352482982,0.10883265,195.68,195.67,22.26065946]
[1760352483152,0.10883265,195.68,195.67,26.33857208]
[1760352483777,0.09761794,195.71,195.67,26.33857208]
[1760352483778,1e-08,195.71,195.7,16.46001399]
[1760352484080,0.09588409,195.72,195.71,16.46001399]
[1760352484288,0.09588409,195.72,195.71,20.53792661]
[1760352484580,0.09588409,195.72,195.71,21.22792661]
[1760352484955,0.09588409,195.72,195.71,101.62792661]
[1760352486262,0.09588409,195.72,195.71,106.73752755]
[1760352487763,0.09588409,195.72,195.71,102.65961493]
[1760352488475,0.09588409,195.72,195.71,106.73752755]
[1760352490565,0.09588409,195.72,195.71,102.65961493]
[1760352490770,0.09588409,195.72,195.71,106.73752755]
[1760352491398,0.10733506,195.74,195.73,16.46001399]
[1760352491583,0.10958705,195.75,195.74,16.46001399]
[1760352491787,0.10958705,195.75,195.74,21.22792661]
[1760352492682,0.10993464,195.77,195.75,16.46001399]
[1760352492988,1e-08,195.77,195.76,16.46001399]
[1760352493190,1e-08,195.77,195.76,25.64622248]
[1760352493496,1e-08,195.77,195.76,26.33622248]
[1760352493889,1e-08,195.77,195.76,22.25830986]
[1760352494076,1e-08,195.77,195.76,21.56830986]
[1760352494586,1e-08,195.77,195.76,16.46001399]
[1760352495073,1e-08,195.77,195.76,21.56830986]
[1760352495871,0.09340824,195.77,195.76,21.56830986]
[1760352496499,4.17132086,195.77,195.76,21.56830986]
[1760352496691,4.17132086,195.77,195.76,16.46001399]
[1760352497483,4.17132085,195.77,195.76,16.46001399]
[1760352498193,24.97132085,195.77,195.76,21.56830986]
[1760352500190,20.89340823,195.77,195.76,16.46001399]
[1760352500498,21.51340823,195.77,195.76,16.46001399]
[1760352500672,20.89340823,195.77,195.76,16.46001399]
[1760352501073,24.97132085,195.77,195.76,16.46001399]
[1760352501673,20.89340823,195.77,195.76,16.46001399]
[1760352502075,0.09340823,195.77,195.76,22.25830986]
[1760352502279,0.09340823,195.77,195.76,26.33622248]
[1760352502796,0.09340823,195.77,195.76,22.25830986]
[1760352503201,0.09340823,195.77,195.76,26.33622248]
[1760352508287,0.10953251,195.79,195.77,20.53792661]
[1760352508607,0.10953251,195.79,195.78,20.53792661]
[1760352508804,0.10953251,195.79,195.78,21.22792661]
[1760352509118,0.10953251,195.79,195.78,101.62792661]
[1760352509488,0.09560841,195.8,195.78,101.62792661]
[1760352509689,0.09560841,195.8,195.79,4.76791262]
[1760352510113,0.09560841,195.8,195.79,22.25752714]
[1760352510403,0.09560841,195.8,195.79,26.33543976]
[1760352511097,0.0928793,195.86,195.81,27.3364892]
[1760352511289,0.2,195.92,195.91,16.46001399]
[1760352511505,0.2,195.92,195.91,20.53792661]
[1760352512213,0.2,195.92,195.91,25.64231127]
[1760352512424,0.2,195.92,195.91,21.56439865]
[1760352512986,0.2,195.92,195.91,25.64231127]
[1760352513202,0.2,195.92,195.91,16.46001399]
[1760352513413,0.2,195.92,195.91,21.56439865]
[1760352513909,0.2,195.92,195.91,16.46001399]
[1760352514089,21.62,195.92,195.91,16.46001399]
[1760352514682,25.69791262,195.92,195.91,16.46001399]
[1760352515696,0.82,195.92,195.91,16.46001399]
[1760352515901,25.79405907,195.92,195.89,16.46001399]
[1760352516223,21.42,195.91,195.9,16.46001399]
[1760352516542,0.62,195.91,195.89,16.46001399]
[1760352516691,0.29614645,195.92,195.91,16.46001399]
[1760352516882,0.91614645,195.92,195.91,16.46001399]
[1760352517087,20.8,195.91,195.9,16.46001399]
[1760352517389,25.49791262,195.91,195.9,16.46001399]
[1760352517596,25.49791262,195.91,195.89,16.46001399]
[1760352517785,0.62,195.91,195.89,16.46001399]
[1760352517981,4.07791262,195.9,195.89,16.46001399]
[1760352519500,21.09614645,195.92,195.91,16.46001399]
[1760352520013,21.71614645,195.92,195.91,16.46001399]
[1760352520207,21.09614645,195.92,195.91,16.46001399]
[1760352520417,0.29614645,195.92,195.91,16.46001399]
[1760352520629,4.37405907,195.92,195.91,16.46001399]
[1760352521513,25.17405907,195.92,195.91,16.46001399]
[1760352522222,25.17405907,195.92,195.89,21.5649113]
[1760352522526,21.09614645,195.92,195.91,16.46001399]
[1760352522931,0.29614645,195.92,195.91,17.15001399]
[1760352523508,0.29614645,195.92,195.91,0.69]
[1760352523725,0.29614645,195.92,195.91,21.56439865]
[1760352524224,0.29614645,195.92,195.91,5.10438466]
[1760352524532,20.8,195.91,195.89,16.46001399]
[1760352524725,21.42,195.91,195.9,16.46001399]
[1760352524905,20.8,195.91,195.9,16.46001399]
[1760352525806,4.07791262,195.91,195.9,16.46001399]
[1760352526224,24.87791262,195.91,195.9,16.46001399]
[1760352526621,24.87791262,195.91,195.89,16.46001399]
[1760352526622,20.8,195.9,195.89,16.46001399]
[1760352526824,4.07791262,195.9,195.88,16.46001399]
[1760352527034,4.69791262,195.89,195.88,16.46001399]
[1760352527340,20.8,195.88,195.86,16.46001399]
[1760352527537,4.07791262,195.87,195.86,16.46001399]
[1760352527707,25.49791262,195.87,195.83,21.56645813]
[1760352527907,24.87791262,195.85,195.84,16.46001399]
[1760352528411,20.8,195.85,195.84,16.46001399]
[1760352528606,5.10456321,195.91,195.84,16.46001399]
[1760352528826,4.07791262,195.9,195.89,16.46001399]
[1760352529614,24.87791262,195.9,195.89,16.46001399]
[1760352530327,20.8,195.9,195.89,16.46001399]
[1760352531415,4.07791262,195.91,195.89,21.5649198]
[1760352531611,24.87791262,195.91,195.9,16.46001399]
[1760352533135,4.07791262,195.91,195.9,16.46001399]
[1760352533515,20.8,195.9,195.89,16.46001399]
[1760352533722,24.87791262,195.9,195.89,16.46001399]
[1760352534431,4.07791262,195.9,195.89,16.46001399]
[1760352534622,24.87791262,195.9,195.89,16.46001399]
[1760352535011,30.60255784,195.9,195.89,16.46001399]
[1760352535215,30.60255784,195.9,195.86,16.46001399]
[1760352535539,26.52464522,195.9,195.87,16.46001399]
[1760352535724,26.52464522,195.9,195.86,16.46001399]
[1760352535921,0.1056496,195.88,195.85,16.46001399]
[1760352536109,0.7256496,195.88,195.84,16.46001399]
[1760352536316,0.1056496,195.88,195.86,16.46001399]
[1760352536520,24.87791262,195.87,195.85,16.46001399]
[1760352536814,4.07791262,195.86,195.85,16.46001399]
[1760352537214,4.18356222,195.88,195.87,16.46001399]
[1760352537430,24.98356222,195.88,195.87,16.46001399]
[1760352538441,24.98356222,195.88,195.86,0.66]
[1760352538629,24.98356222,195.88,195.87,17.12001399]
[1760352538630,20.9056496,195.88,195.87,17.12001399]
[1760352539016,20.9056496,195.88,195.87,16.46001399]
[1760352540117,20.9056496,195.88,195.85,22.22589454]
[1760352540328,20.9056496,195.88,195.87,16.46001399]
[1760352540537,0.1056496,195.88,195.87,17.12001399]
[1760352541227,0.1056496,195.88,195.87,22.22544105]
[1760352544623,2.71096686,195.88,195.87,16.46001399]
[1760352544827,2.71096686,195.88,195.86,16.46001399]
[1760352545140,0.1056496,195.88,195.87,16.46001399]
[1760352546131,2.71096686,195.88,195.87,16.46001399]
[1760352546334,2.71096686,195.88,195.85,96.86001399]
[1760352546550,2.60531726,195.86,195.85,96.86001399]
[1760352547241,2.60531726,195.86,195.85,102.62596241]
[1760352548021,0.1056496,195.88,195.85,102.62596241]
[1760352548226,2.71096686,195.88,195.87,16.46001399]
[1760352548444,23.51096686,195.88,195.87,16.46001399]
[1760352548626,20.9056496,195.88,195.87,17.12001399]
[1760352548827,2.71096686,195.88,195.87,17.12001399]
[1760352550233,2.71096686,195.88,195.87,22.22544105]
[1760352550746,2.71096686,195.88,195.87,16.46001399]
[1760352551537,2.71096686,195.88,195.87,96.86001399]
[1760352552145,23.51096686,195.88,195.87,96.86001399]
[1760352552345,2.71096686,195.88,195.87,96.86001399]
[1760352552849,23.51096686,195.88,195.87,96.86001399]
[1760352553243,24.13096686,195.88,195.87,16.46001399]
[1760352553445,29.23613328,195.88,195.84,16.46001399]
[1760352553645,2.60531726,195.85,195.84,16.46001399]
[1760352553856,0.50771731,195.87,195.84,17.12001399]
[1760352554079,2.71096686,195.88,195.86,16.46001399]
[1760352554360,2.71096686,195.88,195.87,17.12001399]
[1760352554540,0.1056496,195.88,195.87,22.22544105]
[1760352556033,0.21145751,195.88,195.87,22.22544105]
[1760352556432,0.21145751,195.88,195.87,24.83075831]
[1760352556848,0.20262038,195.89,195.87,105.23075831]
[1760352557043,0.20262038,195.89,195.88,20.28584789]
[1760352557454,0.10557397,195.89,195.88,20.28584789]
[1760352558168,0.10557397,195.89,195.88,25.39101431]
[1760352558350,0.10557397,195.89,195.88,22.78569705]
[1760352560334,0.10557397,195.89,195.88,105.79101431]
[1760352560538,0.10557397,195.89,195.88,102.67518041]
[1760352560741,0.10557397,195.89,195.88,105.28049767]
[1760352561137,0.11171746,195.9,195.89,27.3364892]
[1760352561338,0.30005102,195.92,195.91,16.46001399]
[1760352561592,0.30005102,195.92,195.91,19.57576971]
[1760352561865,0.30005102,195.92,195.91,20.28576971]
[1760352562072,0.30005102,195.92,195.91,25.39015437]
[1760352563644,1e-08,195.92,195.91,36.26662958]
[1760352564146,1e-08,195.93,195.92,27.3364892]
[1760352564455,1e-08,195.93,195.92,30.65180646]
[1760352565654,1e-08,195.93,195.92,35.75593059]
[1760352565857,1e-08,195.93,195.92,33.15061333]
[1760352566059,1e-08,195.93,195.92,35.75593059]
[1760352567057,1e-08,195.93,195.92,36.266343]
[1760352567789,1e-08,195.93,195.92,250.766343]
[1760352567947,1e-08,195.94,195.93,29.94180646]
[1760352568146,1e-08,195.95,195.94,10.87647521]
[1760352568345,1e-08,195.97,195.96,27.3364892]
[1760352568647,1e-08,195.97,195.96,30.45211468]
[1760352568985,1e-08,195.97,195.96,31.16211468]
[1760352569472,1e-08,195.97,195.96,36.26519694]
[1760352569847,1e-08,195.97,195.96,22.78340447]
[1760352570065,1e-08,195.97,195.96,22.07340447]
[1760352570349,3.22531727,195.97,195.96,16.46001399]
[1760352571465,2.60531727,195.97,195.96,21.56309625]
[1760352571671,1e-08,195.97,195.96,21.56309625]
[1760352571868,2.60531727,195.97,195.96,21.56309625]
[1760352573379,1e-08,195.97,195.96,21.56309625]
[1760352573554,1e-08,195.97,195.96,22.27309625]
[1760352573748,1e-08,195.97,195.96,22.78340447]
[1760352576170,0.09532899,195.97,195.96,22.78340447]
[1760352576365,0.09532899,195.97,195.96,22.07340447]
[1760352576564,0.09532899,195.97,195.96,21.56309625]
[1760352576753,0.09532899,195.97,195.96,102.67309625]
[1760352577065,0.09532899,195.97,195.96,105.27841351]
[1760352577467,0.09532898,195.97,195.96,102.67309625]
[1760352578652,0.09532898,195.97,195.96,105.27841351]
[1760352579067,1e-08,195.97,195.96,116.15488872]
[1760352580884,1e-08,195.97,195.96,113.54957146]
[1760352581378,1e-08,195.97,195.96,116.15488872]
[1760352583378,1e-08,195.98,195.97,10.87647521]
[1760352583587,1e-08,195.98,195.97,111.56208864]
[1760352583775,1e-08,195.98,195.97,111.05180646]
[1760352583976,1e-08,195.98,195.97,30.65180646]
[1760352584179,1e-08,195.98,195.97,31.16208864]
[1760352584684,1e-08,195.98,195.97,36.2649105]
[1760352585280,1e-08,195.98,195.97,33.65959324]
[1760352585478,1e-08,195.98,195.97,32.94959324]
[1760352585678,1e-08,195.98,195.97,36.2649105]
[1760352586068,1e-08,195.98,195.97,33.65959324]
[1760352586269,1e-08,195.98,195.97,36.2649105]
[1760352588573,1e-08,195.98,195.97,116.6649105]
[1760352588785,1e-08,195.98,195.97,116.15462832]
[1760352589366,1e-08,195.98,195.97,101.96283585]
[1760352589572,1e-08,195.98,195.97,102.47311803]
[1760352589780,1e-08,195.98,195.97,103.12311803]
[1760352590468,1e-08,195.98,195.97,33.59959324]
[1760352592381,1e-08,195.98,195.97,36.2049105]
[1760352592901,0.11161746,196.0,195.99,27.3364892]
[1760352593080,0.10421962,196.04,196.03,16.46001399]
[1760352593392,0.10421962,196.04,196.03,30.45193246]
[1760352593691,0.10248718,196.05,196.04,16.46001399]
[1760352593993,0.2,196.08,196.05,27.3364892]
[1760352594169,0.2,196.08,196.05,31.10188042]
[1760352594378,1e-08,196.07,196.06,27.3364892]
[1760352594574,1e-08,196.07,196.06,30.59180646]
[1760352595999,1e-08,196.07,196.06,35.6922859]
[1760352596292,1e-08,196.07,196.06,33.59701658]
[1760352596601,0.29979517,196.11,196.1,27.3364892]
[1760352596771,0.29979517,196.11,196.1,27.8464331]
[1760352596968,0.29979517,196.11,196.1,28.4964331]
[1760352597172,0.29979517,196.11,196.1,31.10175036]
[1760352597785,0.30424134,196.13,196.11,27.3364892]
[1760352598091,0.30424134,196.13,196.11,30.59180646]
[1760352598292,1e-08,196.14,196.12,27.3364892]